[Event "Live Chess"]
[Site "Chess.com"]
[Date "2024.06.01"]
[Round "-"]
[White "dl_chess"]
[Black "f4nomore"]
[Result "0-1"]
[WhiteElo "1171"]
[BlackElo "1197"]
[TimeControl "300"]
[EndTime "9:08:04 PDT"]
[Termination "f4nomore won by checkmate"]

1. e3 {[%clk 0:04:50.6]} 1... g6 {[%clk 0:04:58]} 2. d4 {[%clk 0:04:47.2]} 2...
Bg7 {[%clk 0:04:56.9]} 3. Bc4 {[%clk 0:04:45]} 3... d6 {[%clk 0:04:55.1]} 4. Nf3
{[%clk 0:04:43.3]} 4... e6 {[%clk 0:04:53.4]} 5. Nc3 {[%clk 0:04:39.3]} 5... Nf6
{[%clk 0:04:52]} 6. Bd2 {[%clk 0:04:36.6]} 6... O-O {[%clk 0:04:50.7]} 7. O-O
{[%clk 0:04:34]} 7... Nbd7 {[%clk 0:04:49.5]} 8. e4 {[%clk 0:04:28.9]} 8... a6
{[%clk 0:04:48.3]} 9. a4 {[%clk 0:04:26]} 9... c5 {[%clk 0:04:45.7]} 10. Be3
{[%clk 0:04:08.7]} 10... cxd4 {[%clk 0:04:41.5]} 11. Nxd4 {[%clk 0:04:00.6]}
11... Nb6 {[%clk 0:04:36.7]} 12. Bb3 {[%clk 0:03:57.3]} 12... d5 {[%clk
0:04:23]} 13. exd5 {[%clk 0:03:45.3]} 13... Nbxd5 {[%clk 0:04:15.5]} 14. Nxd5
{[%clk 0:03:30.1]} 14... exd5 {[%clk 0:04:04.8]} 15. Qf3 {[%clk 0:03:25.6]}
15... Ne4 {[%clk 0:03:57.1]} 16. h3 {[%clk 0:03:20.6]} 16... Be6 {[%clk
0:03:53.4]} 17. Qe2 {[%clk 0:03:09.6]} 17... Rc8 {[%clk 0:03:41.8]} 18. f3
{[%clk 0:03:03.9]} 18... Ng3 {[%clk 0:03:38.5]} 19. Qf2 {[%clk 0:03:02.8]} 19...
Nxf1 {[%clk 0:03:36.9]} 20. Qxf1 {[%clk 0:03:01.1]} 20... b5 {[%clk 0:03:23.8]}
21. axb5 {[%clk 0:02:58.8]} 21... axb5 {[%clk 0:03:21.8]} 22. Nxb5 {[%clk
0:02:54.8]} 22... Bxb2 {[%clk 0:03:18.7]} 23. Rb1 {[%clk 0:02:51.2]} 23... Bg7
{[%clk 0:03:17]} 24. Nd4 {[%clk 0:02:30.9]} 24... Rc3 {[%clk 0:03:00.5]} 25. Qe1
{[%clk 0:02:24.8]} 25... Qc8 {[%clk 0:02:38.2]} 26. Rd1 {[%clk 0:02:10.8]} 26...
Re8 {[%clk 0:02:27.8]} 27. Kh1 {[%clk 0:01:58]} 27... Bxh3 {[%clk 0:02:15]} 28.
gxh3 {[%clk 0:01:55.2]} 28... Qxh3+ {[%clk 0:02:12.2]} 29. Kg1 {[%clk
0:01:53.6]} 29... Rcxe3 {[%clk 0:02:08.5]} 30. Qf2 {[%clk 0:01:46.4]} 30... Bxd4
{[%clk 0:01:58.4]} 31. Rxd4 {[%clk 0:01:41.3]} 31... Re1+ {[%clk 0:01:56.9]} 32.
Qxe1 {[%clk 0:01:37.1]} 32... Rxe1+ {[%clk 0:01:53.4]} 33. Kf2 {[%clk
0:01:35.7]} 33... Qf1+ {[%clk 0:01:51.1]} 34. Kg3 {[%clk 0:01:33.4]} 34... Qg1+
{[%clk 0:01:47.8]} 35. Kf4 {[%clk 0:01:31.1]} 35... Qxd4+ {[%clk 0:01:46.4]} 36.
Kg3 {[%clk 0:01:27.7]} 36... Re3 {[%clk 0:01:42.7]} 37. Kg2 {[%clk 0:01:21.9]}
37... Qf4 {[%clk 0:01:37.6]} 38. Bxd5 {[%clk 0:01:18]} 38... Kg7 {[%clk
0:01:33.8]} 39. Kf2 {[%clk 0:01:16.3]} 39... Rc3 {[%clk 0:01:31.1]} 40. Be4
{[%clk 0:01:14.2]} 40... Qe3+ {[%clk 0:01:24]} 41. Kg3 {[%clk 0:01:13.2]} 41...
Rc5 {[%clk 0:01:21.4]} 42. Kg2 {[%clk 0:01:09]} 42... Rg5+ {[%clk 0:01:19]} 43.
Kf1 {[%clk 0:01:07.9]} 43... Rh5 {[%clk 0:01:15.4]} 44. Kg2 {[%clk 0:01:06.3]}
44... Qd2+ {[%clk 0:01:13.4]} 45. Kg3 {[%clk 0:01:04.7]} 45... Qh2+ {[%clk
0:01:10.8]} 46. Kg4 {[%clk 0:01:01.5]} 46... f5+ {[%clk 0:01:06.9]} 47. Bxf5
{[%clk 0:00:55.7]} 47... gxf5# {[%clk 0:01:05.4]} 0-1

[Event "Live Chess"]
[Site "Chess.com"]
[Date "2024.06.01"]
[Round "-"]
[White "KwikPhoenix"]
[Black "Yarigo"]
[Result "1/2-1/2"]
[WhiteElo "2464"]
[BlackElo "2444"]
[TimeControl "300"]
[EndTime "9:08:20 PDT"]
[Termination "Game drawn by agreement"]

1. Nc3 {[%clk 0:04:58.6]} 1... e5 {[%clk 0:04:52.2]} 2. Nf3 {[%clk 0:04:57.2]}
2... Nc6 {[%clk 0:04:48.6]} 3. d4 {[%clk 0:04:56.2]} 3... exd4 {[%clk
0:04:45.9]} 4. Nxd4 {[%clk 0:04:55.3]} 4... Nf6 {[%clk 0:04:44.9]} 5. Bg5 {[%clk
0:04:54]} 5... Bb4 {[%clk 0:04:43.1]} 6. Nxc6 {[%clk 0:04:50.9]} 6... bxc6
{[%clk 0:04:40.5]} 7. Qd4 {[%clk 0:04:49.1]} 7... Qe7 {[%clk 0:04:29.3]} 8. e3
{[%clk 0:04:47.5]} 8... O-O {[%clk 0:04:25.5]} 9. a3 {[%clk 0:04:27.5]} 9...
Bxc3+ {[%clk 0:04:17.8]} 10. Qxc3 {[%clk 0:04:27.4]} 10... a5 {[%clk 0:04:08]}
11. Bxf6 {[%clk 0:04:21.6]} 11... Qxf6 {[%clk 0:04:05.2]} 12. Qxf6 {[%clk
0:04:19.4]} 12... gxf6 {[%clk 0:04:02.3]} 13. O-O-O {[%clk 0:04:16.8]} 13... d6
{[%clk 0:04:00.4]} 14. Be2 {[%clk 0:04:13.3]} 14... c5 {[%clk 0:03:56.2]} 15.
Bf3 {[%clk 0:04:08.9]} 15... Rb8 {[%clk 0:03:54.8]} 16. h4 {[%clk 0:04:00.6]}
16... Be6 {[%clk 0:03:49.8]} 17. h5 {[%clk 0:03:53.4]} 17... h6 {[%clk
0:03:48.2]} 18. Rh4 {[%clk 0:03:51.2]} 18... Rfd8 {[%clk 0:03:40.4]} 19. Bd5
{[%clk 0:03:44.7]} 19... Kf8 {[%clk 0:03:31.1]} 20. Ra4 {[%clk 0:03:38]} 20...
Rb5 {[%clk 0:03:23.8]} 21. Bc6 {[%clk 0:03:17]} 21... Rb6 {[%clk 0:03:21.7]} 22.
Bf3 {[%clk 0:03:11.7]} 22... Rdb8 {[%clk 0:03:13.3]} 23. b3 {[%clk 0:02:51.6]}
23... c4 {[%clk 0:03:11.2]} 24. bxc4 {[%clk 0:02:51]} 24... Rb2 {[%clk
0:03:01.2]} 25. Rxa5 {[%clk 0:02:39.8]} 25... Ra2 {[%clk 0:02:59.5]} 26. Rb5
{[%clk 0:02:18.7]} 26... Rxb5 {[%clk 0:02:54.5]} 27. cxb5 {[%clk 0:02:18.6]}
27... Rxa3 {[%clk 0:02:47.1]} 28. Kb2 {[%clk 0:02:10.2]} 28... Ra2+ {[%clk
0:02:43.1]} 29. Kc3 {[%clk 0:02:02.8]} 29... Ke7 {[%clk 0:02:41.1]} 30. Bd5
{[%clk 0:01:57.2]} 30... Ra4 {[%clk 0:02:34.8]} 31. Bxe6 {[%clk 0:01:54.1]}
31... fxe6 {[%clk 0:02:32.2]} 32. Rd4 {[%clk 0:01:51.3]} 32... Ra1 {[%clk
0:02:19.3]} 33. Rc4 {[%clk 0:01:45.8]} 33... Kd7 {[%clk 0:02:15.2]} 34. Rg4
{[%clk 0:01:44.4]} 34... Rh1 {[%clk 0:02:03]} 35. Rg7+ {[%clk 0:01:43.7]} 35...
Kc8 {[%clk 0:02:01.2]} 36. g4 {[%clk 0:01:43.2]} 36... f5 {[%clk 0:01:58.3]} 37.
g5 {[%clk 0:01:24]} 37... Rxh5 {[%clk 0:01:42.4]} 38. g6 {[%clk 0:01:22.2]}
38... Rg5 {[%clk 0:01:39.7]} 39. Kb4 {[%clk 0:01:10.2]} 39... h5 {[%clk
0:01:31.6]} 40. Rh7 {[%clk 0:00:57]} 40... Rxg6 {[%clk 0:01:26.3]} 41. Rxh5
{[%clk 0:00:56.4]} 41... Rg2 {[%clk 0:01:24.3]} 42. Rh8+ {[%clk 0:00:55.7]}
42... Kb7 {[%clk 0:01:21.2]} 43. Re8 {[%clk 0:00:55.1]} 43... e5 {[%clk
0:01:19.1]} 44. c4 {[%clk 0:00:52.3]} 44... Rxf2 {[%clk 0:01:16.6]} 45. Rf8
{[%clk 0:00:51]} 45... f4 {[%clk 0:01:12.2]} 46. exf4 {[%clk 0:00:50.9]} 46...
Rxf4 {[%clk 0:01:10.6]} 47. Re8 {[%clk 0:00:50.3]} 1/2-1/2

[Event "Live Chess"]
[Site "Chess.com"]
[Date "2024.06.01"]
[Round "-"]
[White "booktrunk"]
[Black "Tatarinov_Maxim"]
[Result "0-1"]
[WhiteElo "1376"]
[BlackElo "2281"]
[TimeControl "300"]
[EndTime "9:08:21 PDT"]
[Termination "Tatarinov_Maxim won by resignation"]

1. d4 {[%clk 0:04:48]} 1... Nf6 {[%clk 0:04:58.7]} 2. Nc3 {[%clk 0:04:47.2]}
2... g6 {[%clk 0:04:57.1]} 3. Bf4 {[%clk 0:04:45.2]} 3... Bg7 {[%clk 0:04:55.7]}
4. Nb5 {[%clk 0:04:38.9]} 4... d6 {[%clk 0:04:54]} 5. e3 {[%clk 0:04:24.6]} 5...
O-O {[%clk 0:04:50]} 6. Nc3 {[%clk 0:04:20.6]} 6... c5 {[%clk 0:04:45]} 7. dxc5
{[%clk 0:04:17.7]} 7... dxc5 {[%clk 0:04:42.7]} 8. Qxd8 {[%clk 0:04:15.7]} 8...
Rxd8 {[%clk 0:04:42.6]} 9. Bd3 {[%clk 0:04:07.3]} 9... Nc6 {[%clk 0:04:40.8]}
10. Nf3 {[%clk 0:04:04.2]} 10... Nb4 {[%clk 0:04:37.9]} 11. Rd1 {[%clk
0:03:51.7]} 11... Nxd3+ {[%clk 0:04:31.1]} 12. Rxd3 {[%clk 0:03:48.2]} 12...
Rxd3 {[%clk 0:04:29]} 13. cxd3 {[%clk 0:03:46.4]} 13... Bf5 {[%clk 0:04:28.9]}
14. e4 {[%clk 0:03:44]} 14... Bg4 {[%clk 0:04:27.3]} 15. Ne5 {[%clk 0:03:38.8]}
15... Be6 {[%clk 0:04:23]} 16. O-O {[%clk 0:03:36.2]} 16... Nh5 {[%clk
0:04:21.6]} 17. g3 {[%clk 0:03:28]} 17... Nxf4 {[%clk 0:04:19.9]} 18. gxf4
{[%clk 0:03:26.5]} 18... Rd8 {[%clk 0:04:19.8]} 19. Rd1 {[%clk 0:03:19.8]} 19...
g5 {[%clk 0:04:05.5]} 20. Nf3 {[%clk 0:03:03.1]} 20... gxf4 {[%clk 0:04:02]} 21.
Nb5 {[%clk 0:02:58.5]} 21... Bxa2 {[%clk 0:03:54.6]} 22. Nxa7 {[%clk 0:02:55.7]}
22... Bc4 {[%clk 0:03:48.8]} 23. Rc1 {[%clk 0:02:37.3]} 23... Bxd3 {[%clk
0:03:47]} 24. Rxc5 {[%clk 0:02:35.1]} 24... Bxe4 {[%clk 0:03:46.4]} 25. Ne1
{[%clk 0:02:29.4]} 25... Bxb2 {[%clk 0:03:42.3]} 26. Nb5 {[%clk 0:02:25.4]}
26... Rd1 {[%clk 0:03:35.8]} 0-1

[Event "Live Chess"]
[Site "Chess.com"]
[Date "2024.06.01"]
[Round "-"]
[White "blunderabit"]
[Black "Andysav3"]
[Result "0-1"]
[WhiteElo "1812"]
[BlackElo "1826"]
[TimeControl "300"]
[EndTime "9:08:29 PDT"]
[Termination "Andysav3 won by resignation"]

1. e4 {[%clk 0:04:56.6]} 1... c5 {[%clk 0:04:58.3]} 2. Nf3 {[%clk 0:04:54.3]}
2... Nc6 {[%clk 0:04:57.3]} 3. Bb5 {[%clk 0:04:51.1]} 3... Nd4 {[%clk
0:04:55.2]} 4. Nxd4 {[%clk 0:04:48.7]} 4... cxd4 {[%clk 0:04:54.7]} 5. O-O
{[%clk 0:04:47.3]} 5... Qb6 {[%clk 0:04:50.9]} 6. Ba4 {[%clk 0:04:42.4]} 6... g6
{[%clk 0:04:47.4]} 7. d3 {[%clk 0:04:38.1]} 7... Bg7 {[%clk 0:04:45.2]} 8. f4
{[%clk 0:04:36.1]} 8... e6 {[%clk 0:04:30.6]} 9. f5 {[%clk 0:04:31.4]} 9... Nf6
{[%clk 0:04:10]} 10. fxe6 {[%clk 0:04:23.1]} 10... fxe6 {[%clk 0:04:06.5]} 11.
e5 {[%clk 0:04:22.6]} 11... Nd5 {[%clk 0:03:47.7]} 12. Qe2 {[%clk 0:04:13.2]}
12... Qc7 {[%clk 0:03:32.8]} 13. c4 {[%clk 0:03:47.8]} 13... dxc3 {[%clk
0:03:21.7]} 14. Nxc3 {[%clk 0:03:43.5]} 14... Nxc3 {[%clk 0:03:16.6]} 15. bxc3
{[%clk 0:03:40.4]} 15... Qxe5 {[%clk 0:03:04.2]} 16. Qxe5 {[%clk 0:03:27.3]}
16... Bxe5 {[%clk 0:03:02.7]} 17. Ba3 {[%clk 0:03:17.2]} 17... a6 {[%clk
0:02:52.9]} 18. Rae1 {[%clk 0:03:12.9]} 18... Bxc3 {[%clk 0:02:49.8]} 19. Rxe6+
{[%clk 0:03:10.8]} 19... Kd8 {[%clk 0:02:48.2]} 20. Re7 {[%clk 0:02:55.5]} 20...
b5 {[%clk 0:02:38.4]} 21. Bd6 {[%clk 0:02:38.2]} 21... bxa4 {[%clk 0:02:27.5]}
22. Ref7 {[%clk 0:02:36.1]} 22... Re8 {[%clk 0:02:02.8]} 23. Rc1 {[%clk
0:02:17]} 23... Bd4+ {[%clk 0:01:44.7]} 24. Kf1 {[%clk 0:02:10.5]} 24... Ra7
{[%clk 0:01:43.5]} 25. Rf8 {[%clk 0:02:00]} 25... Rxf8+ {[%clk 0:01:39.1]} 26.
Bxf8 {[%clk 0:01:58.9]} 26... Bb7 {[%clk 0:01:30.2]} 27. Bd6 {[%clk 0:01:53.3]}
27... Bc6 {[%clk 0:01:28]} 28. g3 {[%clk 0:01:41.3]} 28... Rb7 {[%clk
0:01:26.8]} 29. Ba3 {[%clk 0:01:21.9]} 29... Bb2 {[%clk 0:01:22.3]} 30. Bxb2
{[%clk 0:01:17.7]} 30... Rxb2 {[%clk 0:01:21]} 31. Ra1 {[%clk 0:01:10.9]} 31...
a3 {[%clk 0:01:18.7]} 32. Kg1 {[%clk 0:01:06]} 32... Bb5 {[%clk 0:01:15.2]} 33.
d4 {[%clk 0:00:59.3]} 33... Bc4 {[%clk 0:01:11.3]} 34. Kh1 {[%clk 0:00:37.3]}
34... d5 {[%clk 0:01:09.5]} 35. Kg1 {[%clk 0:00:36.1]} 35... Bxa2 {[%clk
0:01:07.4]} 0-1

[Event "Live Chess"]
[Site "Chess.com"]
[Date "2024.06.01"]
[Round "-"]
[White "Duke_of_Bebington"]
[Black "Delacorta"]
[Result "1-0"]
[WhiteElo "1622"]
[BlackElo "1404"]
[TimeControl "300"]
[EndTime "9:08:30 PDT"]
[Termination "Duke_of_Bebington won by resignation"]

1. e4 {[%clk 0:04:58.1]} 1... e6 {[%clk 0:04:58.9]} 2. d4 {[%clk 0:04:56.5]}
2... d5 {[%clk 0:04:57.8]} 3. Nd2 {[%clk 0:04:55.8]} 3... dxe4 {[%clk
0:04:54.7]} 4. Nxe4 {[%clk 0:04:54.7]} 4... Bd7 {[%clk 0:04:54]} 5. Bd3 {[%clk
0:04:51.5]} 5... Bc6 {[%clk 0:04:52.8]} 6. Ne2 {[%clk 0:04:49.1]} 6... Nd7
{[%clk 0:04:51.1]} 7. O-O {[%clk 0:04:47.4]} 7... Ngf6 {[%clk 0:04:49.6]} 8. Bg5
{[%clk 0:04:44.4]} 8... Be7 {[%clk 0:04:47.7]} 9. Nxf6+ {[%clk 0:04:39]} 9...
Bxf6 {[%clk 0:04:37.7]} 10. Bxf6 {[%clk 0:04:36.2]} 10... Nxf6 {[%clk
0:04:36.3]} 11. Ng3 {[%clk 0:04:25.7]} 11... O-O {[%clk 0:04:32.1]} 12. Re1
{[%clk 0:04:17]} 12... b6 {[%clk 0:04:08.6]} 13. c3 {[%clk 0:04:09.1]} 13... Qd5
{[%clk 0:03:54.4]} 14. f3 {[%clk 0:03:57.4]} 14... Qd7 {[%clk 0:03:44.1]} 15.
Qc2 {[%clk 0:03:54.8]} 15... g6 {[%clk 0:03:32.7]} 16. Rad1 {[%clk 0:03:45.9]}
16... Nd5 {[%clk 0:03:29.7]} 17. Qd2 {[%clk 0:03:23.2]} 17... Bb5 {[%clk
0:03:16.6]} 18. c4 {[%clk 0:03:19.2]} 18... Ba4 {[%clk 0:02:58]} 19. b3 {[%clk
0:03:15.5]} 19... Bc6 {[%clk 0:02:52.8]} 20. cxd5 {[%clk 0:03:14.1]} 20... Bxd5
{[%clk 0:02:51.6]} 21. Be4 {[%clk 0:03:10.5]} 21... a5 {[%clk 0:02:40.8]} 22.
Bxd5 {[%clk 0:03:04.8]} 22... Qxd5 {[%clk 0:02:40.7]} 23. Ne4 {[%clk 0:03:03.2]}
23... a4 {[%clk 0:02:39.4]} 24. Nf6+ {[%clk 0:03:01.7]} 1-0

[Event "Live Chess"]
[Site "Chess.com"]
[Date "2024.06.01"]
[Round "-"]
[White "Cruiseylee78"]
[Black "DarranAS"]
[Result "1-0"]
[WhiteElo "1667"]
[BlackElo "1586"]
[TimeControl "300"]
[EndTime "9:08:32 PDT"]
[Termination "Cruiseylee78 won by checkmate"]

1. d4 {[%clk 0:04:58.9]} 1... d5 {[%clk 0:04:49.7]} 2. Bf4 {[%clk 0:04:57.4]}
2... Nf6 {[%clk 0:04:42.1]} 3. e3 {[%clk 0:04:54.6]} 3... c6 {[%clk 0:04:39.7]}
4. Bd3 {[%clk 0:04:49.4]} 4... g6 {[%clk 0:04:36.4]} 5. Nf3 {[%clk 0:04:43.2]}
5... Nbd7 {[%clk 0:04:33.9]} 6. Nbd2 {[%clk 0:04:32]} 6... Bg7 {[%clk
0:04:31.8]} 7. c3 {[%clk 0:04:22.7]} 7... O-O {[%clk 0:04:29.6]} 8. Qc2 {[%clk
0:04:08]} 8... b6 {[%clk 0:04:13.4]} 9. h3 {[%clk 0:03:51.1]} 9... Bb7 {[%clk
0:03:55.9]} 10. O-O-O {[%clk 0:03:37.1]} 10... Rc8 {[%clk 0:03:54.1]} 11. Qa4
{[%clk 0:03:20.8]} 11... a5 {[%clk 0:03:41.6]} 12. g4 {[%clk 0:03:13.1]} 12...
c5 {[%clk 0:03:34.8]} 13. Bb5 {[%clk 0:03:06.3]} 13... c4 {[%clk 0:03:20.3]} 14.
g5 {[%clk 0:03:02.3]} 14... Ne4 {[%clk 0:03:17]} 15. Bxd7 {[%clk 0:02:53.1]}
15... Nxf2 {[%clk 0:02:58.2]} 16. Rdf1 {[%clk 0:02:45.6]} 16... Nd3+ {[%clk
0:02:50.1]} 17. Kb1 {[%clk 0:02:40.7]} 17... Nxf4 {[%clk 0:02:46.2]} 18. Bxc8
{[%clk 0:02:37.8]} 18... Bxc8 {[%clk 0:02:43.5]} 19. exf4 {[%clk 0:02:34]} 19...
Bd7 {[%clk 0:02:42.8]} 20. Qa3 {[%clk 0:02:13.6]} 20... Qc7 {[%clk 0:02:32]} 21.
h4 {[%clk 0:02:03.5]} 21... Qxf4 {[%clk 0:02:23.7]} 22. Ne5 {[%clk 0:01:58.1]}
22... Bf5+ {[%clk 0:02:21.8]} 23. Kc1 {[%clk 0:01:53.2]} 23... Qe3 {[%clk
0:01:53.3]} 24. Qxe7 {[%clk 0:01:45.1]} 24... Bxe5 {[%clk 0:01:44.6]} 25. dxe5
{[%clk 0:01:37.6]} 25... Qd3 {[%clk 0:01:41]} 26. Rxf5 {[%clk 0:01:30.5]} 26...
Qxf5 {[%clk 0:01:28.8]} 27. h5 {[%clk 0:01:25]} 27... gxh5 {[%clk 0:01:08.3]}
28. Rxh5 {[%clk 0:01:21.5]} 28... Qg6 {[%clk 0:01:07.1]} 29. Rh6 {[%clk
0:01:16.7]} 29... Qf5 {[%clk 0:00:56.1]} 30. e6 {[%clk 0:01:03.8]} 30... f6
{[%clk 0:00:48.9]} 31. gxf6 {[%clk 0:00:57.1]} 31... Qg5 {[%clk 0:00:39.8]} 32.
Qxh7# {[%clk 0:00:52.5]} 1-0

[Event "Live Chess"]
[Site "Chess.com"]
[Date "2024.06.01"]
[Round "-"]
[White "ACM42"]
[Black "IanCalvert2"]
[Result "1-0"]
[WhiteElo "2214"]
[BlackElo "1629"]
[TimeControl "300"]
[EndTime "9:08:39 PDT"]
[Termination "ACM42 won by resignation"]

1. e4 {[%clk 0:04:59]} 1... d5 {[%clk 0:04:56.5]} 2. exd5 {[%clk 0:04:57.9]}
2... Qxd5 {[%clk 0:04:53.4]} 3. Nc3 {[%clk 0:04:57.3]} 3... Qd6 {[%clk
0:04:48.8]} 4. Nf3 {[%clk 0:04:56.5]} 4... Nf6 {[%clk 0:04:46.6]} 5. Be2 {[%clk
0:04:55.6]} 5... Bf5 {[%clk 0:04:39.4]} 6. d4 {[%clk 0:04:50.1]} 6... a6 {[%clk
0:04:29.8]} 7. O-O {[%clk 0:04:44.2]} 7... Nc6 {[%clk 0:04:27.8]} 8. Be3 {[%clk
0:04:34.1]} 8... O-O-O {[%clk 0:04:22.8]} 9. Qc1 {[%clk 0:04:23.7]} 9... e5
{[%clk 0:04:19.2]} 10. dxe5 {[%clk 0:04:21.7]} 10... Nxe5 {[%clk 0:04:17.6]} 11.
Bf4 {[%clk 0:04:19.7]} 11... Nxf3+ {[%clk 0:04:02.6]} 12. Bxf3 {[%clk
0:04:18.3]} 12... Qb6 {[%clk 0:03:54.6]} 13. a3 {[%clk 0:04:11.2]} 13... Bd6
{[%clk 0:03:42.1]} 14. Be3 {[%clk 0:04:06.4]} 14... Qa5 {[%clk 0:03:38.5]} 15.
Rd1 {[%clk 0:03:51.5]} 15... Qe5 {[%clk 0:03:22.7]} 16. g3 {[%clk 0:03:50.1]}
16... Bc5 {[%clk 0:03:12.7]} 17. Bf4 {[%clk 0:03:41.7]} 17... Rxd1+ {[%clk
0:03:08.3]} 18. Qxd1 {[%clk 0:03:35]} 18... Qd4 {[%clk 0:02:52.5]} 19. Qxd4
{[%clk 0:03:22.6]} 19... Bxd4 {[%clk 0:02:49.4]} 20. Rc1 {[%clk 0:03:21.4]}
20... Bxc3 {[%clk 0:02:36.1]} 21. bxc3 {[%clk 0:03:21.3]} 21... Ne4 {[%clk
0:02:34.1]} 22. c4 {[%clk 0:03:15.8]} 22... f6 {[%clk 0:02:20.8]} 23. Re1 {[%clk
0:03:14.3]} 23... Re8 {[%clk 0:02:09.6]} 24. c5 {[%clk 0:03:02]} 24... Kd8
{[%clk 0:01:45.2]} 25. c4 {[%clk 0:02:53.9]} 25... Nxc5 {[%clk 0:01:28.5]} 26.
Bxc7+ {[%clk 0:02:52.4]} 26... Kd7 {[%clk 0:01:26.9]} 27. Rxe8 {[%clk
0:02:50.3]} 27... Kxe8 {[%clk 0:01:24.9]} 28. Bd6 {[%clk 0:02:44.6]} 28... b6
{[%clk 0:01:22.9]} 29. Bc7 {[%clk 0:02:43.3]} 29... b5 {[%clk 0:01:05]} 30. cxb5
{[%clk 0:02:39.1]} 30... axb5 {[%clk 0:01:02.4]} 31. Bd6 {[%clk 0:02:36.8]}
31... Ne4 {[%clk 0:00:59.6]} 32. Bb4 {[%clk 0:02:35]} 32... Kd7 {[%clk
0:00:57.3]} 33. h4 {[%clk 0:02:34.2]} 33... Kc6 {[%clk 0:00:55.4]} 34. g4 {[%clk
0:02:33.3]} 1-0

[Event "Live Chess"]
[Site "Chess.com"]
[Date "2024.06.01"]
[Round "-"]
[White "MellowAesthetic"]
[Black "YrrriKharkiv"]
[Result "0-1"]
[WhiteElo "2061"]
[BlackElo "2093"]
[TimeControl "300"]
[EndTime "9:08:48 PDT"]
[Termination "YrrriKharkiv won on time"]

1. e4 {[%clk 0:04:57.7]} 1... e6 {[%clk 0:04:55.9]} 2. d4 {[%clk 0:04:56.1]}
2... d5 {[%clk 0:04:55.3]} 3. Nd2 {[%clk 0:04:55.2]} 3... Nf6 {[%clk 0:04:53.8]}
4. e5 {[%clk 0:04:54.3]} 4... Nfd7 {[%clk 0:04:52.8]} 5. Bd3 {[%clk 0:04:53.8]}
5... c5 {[%clk 0:04:52]} 6. c3 {[%clk 0:04:53.3]} 6... Nc6 {[%clk 0:04:51.1]} 7.
Ne2 {[%clk 0:04:52.6]} 7... f6 {[%clk 0:04:49.7]} 8. exf6 {[%clk 0:04:51.8]}
8... Nxf6 {[%clk 0:04:48.5]} 9. O-O {[%clk 0:04:51.3]} 9... Bd6 {[%clk
0:04:47.6]} 10. Nf3 {[%clk 0:04:41.2]} 10... Bd7 {[%clk 0:04:44.6]} 11. Bf4
{[%clk 0:04:20.8]} 11... Qe7 {[%clk 0:04:41.6]} 12. Re1 {[%clk 0:02:56.5]} 12...
O-O-O {[%clk 0:04:13.5]} 13. Bxd6 {[%clk 0:02:47.5]} 13... Qxd6 {[%clk 0:04:12]}
14. dxc5 {[%clk 0:02:47.4]} 14... Qxc5 {[%clk 0:04:10.8]} 15. Ned4 {[%clk
0:02:47]} 15... Rde8 {[%clk 0:04:00.7]} 16. Ne5 {[%clk 0:02:40.2]} 16... Nxe5
{[%clk 0:03:50.1]} 17. Rxe5 {[%clk 0:02:38.7]} 17... Qd6 {[%clk 0:03:49.5]} 18.
f4 {[%clk 0:02:28.5]} 18... g5 {[%clk 0:03:30.1]} 19. Rxg5 {[%clk 0:01:27.8]}
19... Qxf4 {[%clk 0:03:27.6]} 20. Rg3 {[%clk 0:01:27.1]} 20... h5 {[%clk
0:03:16.2]} 21. Rf3 {[%clk 0:01:22.9]} 21... Qe5 {[%clk 0:03:04.1]} 22. Qe1
{[%clk 0:01:16.7]} 22... Ng4 {[%clk 0:02:52.8]} 23. Qg3 {[%clk 0:00:45.4]} 23...
Qxg3 {[%clk 0:02:48]} 24. Rxg3 {[%clk 0:00:44.6]} 24... e5 {[%clk 0:02:42.5]}
25. Nb5 {[%clk 0:00:42.6]} 25... Rh6 {[%clk 0:02:32.9]} 26. h4 {[%clk 0:00:28]}
26... a6 {[%clk 0:02:29.2]} 27. Na3 {[%clk 0:00:25.8]} 27... e4 {[%clk
0:02:27.3]} 28. Be2 {[%clk 0:00:24.8]} 28... Rg8 {[%clk 0:02:17]} 29. Rf1 {[%clk
0:00:23.4]} 29... Be6 {[%clk 0:02:12.9]} 30. Nc2 {[%clk 0:00:22]} 30... Rhg6
{[%clk 0:02:08.2]} 31. Nd4 {[%clk 0:00:20.8]} 31... Bd7 {[%clk 0:02:04.8]} 32.
Rf7 {[%clk 0:00:17.5]} 32... R6g7 {[%clk 0:01:59.9]} 33. Rxg7 {[%clk 0:00:13.9]}
33... Rxg7 {[%clk 0:01:58.8]} 34. Bxg4 {[%clk 0:00:13]} 34... Bxg4 {[%clk
0:01:54.8]} 35. Re3 {[%clk 0:00:12]} 35... Rf7 {[%clk 0:01:52.7]} 36. Re1 {[%clk
0:00:07.1]} 36... Kc7 {[%clk 0:01:51.8]} 37. Rf1 {[%clk 0:00:06.5]} 37... Rxf1+
{[%clk 0:01:49.1]} 38. Kxf1 {[%clk 0:00:06.4]} 38... Kd6 {[%clk 0:01:47.6]} 39.
Kf2 {[%clk 0:00:05.9]} 39... Ke5 {[%clk 0:01:44.9]} 40. Ke3 {[%clk 0:00:05.5]}
40... Bd7 {[%clk 0:01:42.5]} 41. a3 {[%clk 0:00:04.8]} 41... b5 {[%clk
0:01:39.7]} 42. Ne2 {[%clk 0:00:04.1]} 42... Bg4 {[%clk 0:01:34.2]} 43. Nd4
{[%clk 0:00:02.8]} 43... Kd6 {[%clk 0:01:32.5]} 44. Nc2 {[%clk 0:00:02.3]} 44...
Kc5 {[%clk 0:01:31.6]} 45. Nb4 {[%clk 0:00:01.7]} 45... a5 {[%clk 0:01:29.8]}
46. Nc2 {[%clk 0:00:01.1]} 46... Bd1 {[%clk 0:01:27.2]} 47. Ne1 {[%clk 0:00:01]}
47... b4 {[%clk 0:01:25.6]} 48. g3 {[%clk 0:00:00.9]} 48... bxa3 {[%clk
0:01:24.5]} 0-1